fUST/lending_fUST_20240727
["ID","MTS","AMOUNT","RATE_DAILY","PERIOD"]
[333350161,1722066641024,-500.0,0.00013698,2]
[333350163,1722066641035,-500.0,0.00013698,2]
[333350165,1722066641044,-500.0,0.00013698,2]
[333350166,1722066641053,-500.0,0.00013698,2]
[333350168,1722066641063,-500.0,0.00013698,2]
[333350170,1722066641073,-500.90753046,0.00013698,2]
[333350172,1722066641082,-500.0,0.00013698,2]
[333350173,1722066641091,-503.79320357,0.00013698,2]
[333350174,1722066641100,-500.0,0.00013698,2]
[333350175,1722066641109,-500.0,0.00013698,2]
[333350176,1722066641118,-502.26286959,0.00013698,2]
[333350177,1722066641128,-554.15,0.00013698,2]
[333350178,1722066641138,-1143.39,0.00013698,2]
[333350179,1722066641147,-500.0,0.00013698,2]
[333350180,1722066641158,-500.0,0.00013698,2]
[333350181,1722066641168,-1482.11,0.00013698,2]
[333350182,1722066641177,-1858.03,0.00013698,2]
[333350183,1722066641187,-500.0,0.00013698,2]
[333350184,1722066641196,-500.0,0.00013698,2]
[333350185,1722066641206,-5041.23,0.00013698,2]
[333350186,1722066641215,-500.0,0.00013698,2]
[333350187,1722066641225,-2270.41,0.00013698,2]
[333350188,1722066641234,-346.17201248,0.00013698,2]
[333350189,1722066641244,-500.0,0.00013698,2]
[333350190,1722066641255,-2596.69,0.00013698,2]
[333350191,1722066641264,-1991.53,0.00013698,2]
[333350192,1722066641274,-500.0,0.00013698,2]
[333350193,1722066641284,-1087.74,0.00013698,2]
[333350194,1722066641293,-500.0,0.00013698,2]
[333350195,1722066641302,-500.0,0.00013698,2]
[333350196,1722066641311,-500.0,0.00013698,2]
[333350197,1722066641321,-500.0,0.00013698,2]
[333350198,1722066641330,-1214.64,0.00013698,2]
[333350199,1722066641340,-500.0,0.00013698,2]
[333350200,1722066641349,-500.0,0.00013698,2]
[333350201,1722066641358,-500.0,0.00013698,2]
[333350202,1722066641367,-500.0,0.00013698,2]
[333350203,1722066641376,-500.0,0.00013698,2]
[333350204,1722066641386,-500.0,0.00013698,2]
[333350205,1722066641395,-500.0,0.00013698,2]
[333350206,1722066641404,-500.0,0.00013698,2]
[333350207,1722066641414,-500.0,0.00013698,2]
[333350208,1722066641424,-500.0,0.00013698,2]
[333350209,1722066641433,-715.52,0.00013698,2]
[333350210,1722066641442,-578.96,0.00013698,2]
[333350211,1722066641452,-623.34,0.00013698,2]
[333350212,1722066641461,-500.0,0.00013698,2]
[333350213,1722066641470,-8985.99,0.00013698,2]
[333350214,1722066641479,-500.0,0.00013698,2]
[333350215,1722066641488,-500.0,0.00013698,2]
[333350216,1722066641497,-382.14220212,0.00013698,2]
[333350217,1722066641509,-500.0,0.00013698,2]
[333350218,1722066641521,-500.0,0.00013698,2]
[333350219,1722066641532,-3616.88,0.00013698,2]
[333350220,1722066641543,-500.0,0.00013698,2]
[333350221,1722066641552,-500.0,0.00013698,2]
[333350222,1722066641563,-500.0,0.00013698,2]
[333350223,1722066641572,-500.0,0.00013698,2]
[333350224,1722066641581,-500.0,0.00013698,2]
[333350225,1722066641590,-534.01,0.00013698,2]
[333350226,1722066641599,-500.0,0.00013698,2]
[333350227,1722066641608,-500.0,0.00013698,2]
[333350228,1722066641617,-500.0,0.00013698,2]
[333350229,1722066641626,-524.28,0.00013698,2]
[333350230,1722066641635,-508.59142797,0.00013698,2]
[333350231,1722066641646,-1646.77,0.00013698,2]
[333350232,1722066641655,-500.0,0.00013698,2]
[333350233,1722066641664,-500.0,0.00013698,2]
[333350234,1722066641674,-500.0,0.00013698,2]
[333350235,1722066641683,-507.57712413,0.00013698,2]
[333350236,1722066641693,-500.0,0.00013698,2]
[333350237,1722066641703,-926.59,0.00013698,2]
[333350238,1722066641712,-1254.97,0.00013698,2]
[333350239,1722066641721,-500.0,0.00013698,2]
[333350240,1722066641730,-500.0,0.00013698,2]
[333350241,1722066641739,-500.02705923,0.00013698,2]
[333350242,1722066641750,-624.92435556,0.00013698,2]
[333350243,1722066641760,-2484.26,0.00013698,2]
[333350244,1722066641770,-1830.12,0.00013698,2]
[333350245,1722066641779,-220.70281175,0.00013698,2]
[333350246,1722066641789,-500.0,0.00013698,2]
[333350247,1722066641798,-565.89448725,0.00013698,2]
[333350248,1722066641807,-726.79,0.00013698,2]
[333350249,1722066641816,-500.0,0.00013698,2]
[333350250,1722066641827,-500.0,0.00013698,2]
[333350251,1722066641838,-500.0,0.00013698,2]
[333350252,1722066641848,-560.36,0.00013698,2]
[333350253,1722066641858,-2078.59,0.00013698,2]
[333350254,1722066641868,-1086.93,0.00013698,2]
[333350255,1722066641877,-500.0,0.00013698,2]
[333350256,1722066641886,-868.42,0.00013698,2]
[333350257,1722066641895,-1480.83,0.00013698,2]
[333350258,1722066641905,-999.4,0.00013698,2]
[333350259,1722066641914,-793.76,0.00013698,2]
[333350260,1722066641924,-500.0,0.00013698,2]
[333350261,1722066641939,-5966.97,0.00013698,2]
[333350262,1722066641950,-500.0,0.00013698,2]
[333350263,1722066641961,-739.12,0.00013698,2]
[333350264,1722066641971,-500.0,0.00013698,2]
[333350265,1722066641980,-500.0,0.00013698,2]
[333350266,1722066641990,-500.0,0.00013698,2]
[333350267,1722066641999,-500.0,0.00013698,2]
[333350268,1722066642009,-500.0,0.00013698,2]
[333350269,1722066642018,-500.0,0.00013698,2]
[333350270,1722066642027,-500.0,0.00013698,2]
[333350271,1722066642038,-500.0,0.00013698,2]
[333350272,1722066642049,-955.75,0.00013698,2]
[333350273,1722066642058,-2341.17,0.00013698,2]
[333350274,1722066642067,-3273.26,0.00013698,2]
[333350275,1722066642077,-500.0,0.00013698,2]
[333350276,1722066642086,-500.0,0.00013698,2]
[333350277,1722066642096,-500.0,0.00013698,2]
[333350278,1722066642106,-500.0,0.00013698,2]
[333350279,1722066642115,-500.0,0.00013698,2]
[333350280,1722066642125,-1099.81,0.00013698,2]
[333350281,1722066642134,-500.0,0.00013698,2]
[333350282,1722066642143,-1435.35,0.00013698,2]
[333350283,1722066642153,-500.0,0.00013698,2]
[333350284,1722066642162,-815.22,0.00013698,2]
[333350285,1722066642171,-1022.99,0.00013698,2]
[333350286,1722066642181,-1229.4,0.00013698,2]
[333350287,1722066642190,-784.16,0.00013698,2]
[333350288,1722066642200,-513.43690189,0.00013698,2]
[333350289,1722066642209,-500.0,0.00013698,2]
[333350290,1722066642218,-500.0,0.00013698,2]
[333350291,1722066642229,-554.04,0.00013698,2]
[333350292,1722066642239,-211.95222567,0.00013698,2]
[333350293,1722066642248,-500.0,0.00013698,2]
[333350294,1722066642258,-500.0,0.00013698,2]
[333350295,1722066642267,-500.0,0.00013698,2]
[333350296,1722066642276,-502.29692296,0.00013698,2]
[333350297,1722066642287,-842.22,0.00013698,2]
[333350298,1722066642296,-1529.83,0.00013698,2]
[333350299,1722066642305,-500.0,0.00013698,2]
[333350300,1722066642314,-500.0,0.00013698,2]
[333350301,1722066642323,-500.0,0.00013698,2]
[333350302,1722066642332,-569.12686434,0.00013698,2]
[333350303,1722066642342,-500.0,0.00013698,2]
[333350304,1722066642351,-505.34279505,0.00013698,2]
[333350305,1722066642360,-2023.32,0.00013698,2]
[333350306,1722066642369,-515.78965127,0.00013698,2]
[333350307,1722066642379,-500.0,0.00013698,2]
[333350308,1722066642389,-734.85,0.00013698,2]
[333350309,1722066642398,-1192.16,0.00013698,2]
[333350310,1722066642407,-3091.92,0.00013698,2]
[333350311,1722066642416,-749.47,0.00013698,2]
[333350312,1722066642425,-2218.31,0.00013698,2]
[333350313,1722066642434,-378.99169868,0.00013698,2]
[333350314,1722066642443,-500.0,0.00013698,2]
[333350316,1722066642453,-500.0,0.00013698,2]
[333350318,1722066642462,-500.0,0.00013698,2]
[333350320,1722066642471,-500.0,0.00013698,2]
[333350322,1722066642481,-500.0,0.00013698,2]
[333350324,1722066642490,-439.49274464,0.00013698,2]
[333350326,1722066642500,-500.0,0.00013698,2]
[333350328,1722066642509,-500.0,0.00013698,2]
[333350330,1722066642518,-500.0,0.00013698,2]
[333350332,1722066642527,-492.50201476,0.00013698,2]
[333350333,1722066642539,-500.0,0.00013698,2]
[333350335,1722066642548,-500.0,0.00013698,2]
[333350337,1722066642559,-500.0,0.00013698,2]
[333350338,1722066642568,-500.0,0.00013698,2]
[333350340,1722066642576,-500.0,0.00013698,2]
[333350342,1722066642585,-500.0,0.00013698,2]
[333350344,1722066642594,-500.0,0.00013698,2]
[333350346,1722066642603,-500.0,0.00013698,2]
[333350348,1722066642611,-500.0,0.00013698,2]
[333350350,1722066642620,-500.0,0.00013698,2]
[333350352,1722066642630,-500.0,0.00013698,2]
[333350354,1722066642639,-500.0,0.00013698,2]
[333350356,1722066642648,-252.72293519,0.00013698,2]
[333350358,1722066642657,-500.0,0.00013698,2]
[333350360,1722066642666,-500.0,0.00013698,2]
[333350362,1722066642675,-500.0,0.00013698,2]
[333350364,1722066642684,-500.0,0.00013698,2]
[333350366,1722066642694,-500.0,0.00013698,2]
[333350368,1722066642704,-687.08,0.00013698,2]
[333350370,1722066642714,-4730.44,0.00013698,2]
[333350372,1722066642723,-4730.44,0.00013698,2]
[333350374,1722066642732,-688.34386,0.00013699,2]
[333350376,1722066642741,-355.0,0.00013699,2]
[333350378,1722066642750,-3000.0,0.00013699,2]
[333350380,1722066642760,-150.112233,0.000137,2]
[333350382,1722066642769,-150.112233,0.000137,2]
[333350384,1722066642778,-88888.0,0.00013772,2]
[333350386,1722066642790,-150.112233,0.000138,2]
[333350388,1722066642800,-603.0,0.000138,2]
[333350390,1722066642809,-150.112233,0.000138,2]
[333350392,1722066642818,-150.112233,0.000138,2]
[333350394,1722066642827,-151.0,0.00013862,2]
[333350397,1722066642836,-200.179096,0.00013862,2]
[333350399,1722066642846,-200.179096,0.00013862,2]
[333350401,1722066642855,-772.21134153,0.00013862,2]
[333350403,1722066642864,-159.254236,0.00013862,2]
[333350405,1722066642873,-159.254236,0.00013862,2]
[333350407,1722066642883,-203.212607,0.00013862,2]
[333350409,1722066642893,-203.212607,0.00013862,2]
[333350411,1722066642902,-438.99322283,0.00013871,2]
[333350760,1722066646729,-1714.76987069,0.00013598,2]
[333350762,1722066646740,-1714.76987067,0.00013667,2]
[333350764,1722066646751,-4730.44,0.00013698,2]
[333350766,1722066646762,-4517.59924022,0.00013698,2]
[333350814,1722066647190,-212.84075978,0.00013698,2]
[333350816,1722066647201,-536.09369508,0.00013698,2]
[333351311,1722066652840,200.0,0.0001,2]
[333352033,1722066667511,226.79545596,0.00010959,2]
[333352046,1722066722374,200.0,0.0001,2]
[333352049,1722066782502,200.0,0.0001,2]
[333352054,1722066795395,1020.10671538,0.0001,2]
[333352061,1722066800230,272.09711772,9.999e-05,2]
[333352062,1722066804613,154.69833824,0.0001,2]
[333352064,1722066847907,200.0,0.0001,2]
[333352065,1722066912892,200.0,0.0001,2]
[333352073,1722066983526,154.79103211,0.0001,2]
[333352074,1722066983572,200.0,0.0001,2]
[333352075,1722066987374,154.79443376,9.999e-05,2]
[333352076,1722066994692,206.96381005,9.999e-05,2]
[333352078,1722067052330,200.0,0.0001,2]
[333352080,1722067113006,200.0,0.0001,2]
[333352081,1722067156483,1504.0,0.00020827,60]
[333352082,1722067172985,200.0,0.0001,2]
[333352083,1722067243455,200.0,0.0001,2]
[333352084,1722067312483,200.0,0.0001,2]
[333352085,1722067382556,200.0,0.0001,2]
[333352086,1722067447279,200.0,0.0001,2]
[333352087,1722067512436,287.57615687,0.0001,2]
[333352094,1722067639179,-733.0,0.00010959,2]
[333352095,1722067639204,-300.0,0.00011339,2]
[333352096,1722067639229,-10012.44545999,0.0001134,2]
[333352097,1722067641149,-163.06908675,0.0001134,2]
[333352100,1722067752105,-252.19,0.0001134,2]
[333352101,1722067754123,-163.33333268,0.0001134,2]
[333352102,1722067761110,-14308.96212058,0.0001134,2]
[333352103,1722067761134,-166.666667,0.00011466,2]
[333352104,1722067761158,-166.666667,0.0001152,2]
[333352105,1722067761180,-166.666667,0.00011574,2]
[333352106,1722067761200,-166.666667,0.00011629,2]
[333352107,1722067761221,-166.666667,0.00011683,2]
[333352108,1722067761241,-166.666667,0.00011737,2]
[333352109,1722067761264,-166.666667,0.00011792,2]
[333352110,1722067761285,-166.666667,0.00011846,2]
[333352111,1722067761306,-166.666667,0.000119,2]
[333352112,1722067761326,-166.666667,0.00011955,2]
[333352113,1722067761347,-166.666667,0.00012009,2]
[333352114,1722067761368,-166.666667,0.00012063,2]
[333352115,1722067776982,251.06554514,9.999e-05,2]
[333352116,1722067777003,257.6273503,9.999e-05,2]
[333352117,1722067777026,154.15039304,9.999e-05,2]
[333352156,1722067831895,-500.0,0.00013,2]
[333352157,1722067832578,-490.29,0.00013,2]
[333352164,1722067837935,-3628.75046055,0.00013,2]
[333352166,1722067837945,-206.3050992,0.00013233,2]
[333352167,1722067837954,-192.017591,0.00013425,2]
[333352168,1722067837964,-5308.13158001,0.00013431,2]
[333352169,1722067837974,-512.031,0.00013478,2]
[333352170,1722067837983,-152.09328093,0.0001348,2]
[333352171,1722067837993,-653.86140967,0.00013498,2]
[333352172,1722067838002,-260.98572873,0.00013573,2]
[333352173,1722067838012,-438.99322283,0.00013598,2]
[333352174,1722067838022,-4806.87089569,0.00013598,2]
[333352185,1722067840319,-350.23562477,0.000129,2]
[333352186,1722067840329,-84081.12910431,0.00013598,2]
[333352187,1722067840338,-2000.0,0.00013598,2]
[333352188,1722067840347,-235.42987206,0.00013678,2]
[333352189,1722067840356,-1409.0,0.00013684,2]
[333352190,1722067840365,-824.00455221,0.00013688,2]
[333352191,1722067840374,-500.0,0.00013698,2]
[333352192,1722067840383,-500.0,0.00013698,2]
[333352193,1722067840392,-500.0,0.00013698,2]
[333352194,1722067840402,-500.0,0.00013698,2]
[333352195,1722067840411,-503.58566811,0.00013698,2]
[333352196,1722067840420,-501.29453589,0.00013698,2]
[333352197,1722067840428,-500.0,0.00013698,2]
[333352198,1722067840438,-500.0,0.00013698,2]
[333352199,1722067840447,-500.0,0.00013698,2]
[333352200,1722067840457,-503.20880811,0.00013698,2]
[333352201,1722067840466,-500.0,0.00013698,2]
[333352202,1722067840475,-500.0,0.00013698,2]
[333352203,1722067840485,-500.0,0.00013698,2]
[333352204,1722067840498,-500.0,0.00013698,2]
[333352205,1722067840507,-500.0,0.00013698,2]
[333352206,1722067840516,-500.0,0.00013698,2]
[333352207,1722067840526,-500.0,0.00013698,2]
[333352208,1722067840535,-500.0,0.00013698,2]
[333352209,1722067840544,-500.0,0.00013698,2]
[333352210,1722067840553,-500.0,0.00013698,2]
[333352211,1722067840562,-500.0,0.00013698,2]
[333352212,1722067840572,-503.74727842,0.00013698,2]
[333352213,1722067840584,-500.0,0.00013698,2]
[333352214,1722067840592,-500.0,0.00013698,2]
[333352215,1722067840601,-500.0,0.00013698,2]
[333352216,1722067840611,-500.0,0.00013698,2]
[333352217,1722067840620,-500.0,0.00013698,2]
[333352218,1722067840629,-500.0,0.00013698,2]
[333352219,1722067840638,-500.0,0.00013698,2]
[333352220,1722067840648,-500.0,0.00013698,2]
[333352221,1722067840657,-500.0,0.00013698,2]
[333352222,1722067840667,-500.0,0.00013698,2]
[333352223,1722067840677,-500.0,0.00013698,2]
[333352224,1722067840686,-500.0,0.00013698,2]
[333352225,1722067840695,-500.0,0.00013698,2]
[333352226,1722067840704,-866.01,0.00013698,2]
[333352227,1722067840713,-500.0,0.00013698,2]
[333352228,1722067840722,-500.0,0.00013698,2]
[333352229,1722067840731,-500.0,0.00013698,2]
[333352230,1722067840740,-500.0,0.00013698,2]
[333352231,1722067840749,-500.0,0.00013698,2]
[333352232,1722067840758,-500.0,0.00013698,2]
[333352233,1722067840767,-500.0,0.00013698,2]
[333352234,1722067840776,-760.96,0.00013698,2]
[333352235,1722067840785,-500.0,0.00013698,2]
[333352236,1722067840795,-500.0,0.00013698,2]
[333352237,1722067840804,-500.0,0.00013698,2]
[333352238,1722067840813,-500.0,0.00013698,2]
[333352239,1722067840822,-500.0,0.00013698,2]
[333352240,1722067840831,-500.0,0.00013698,2]
[333352241,1722067840840,-500.0,0.00013698,2]
[333352242,1722067840849,-504.23831053,0.00013698,2]
[333352243,1722067840858,-500.0,0.00013698,2]
[333352244,1722067840867,-500.0,0.00013698,2]
[333352245,1722067840876,-345.75199749,0.00013698,2]
[333352246,1722067840885,-500.0,0.00013698,2]
[333352247,1722067840894,-500.0,0.00013698,2]
[333352248,1722067840903,-500.0,0.00013698,2]
[333352249,1722067840913,-1215.97,0.00013698,2]
[333352250,1722067840923,-495.92530653,0.00013698,2]
[333352251,1722067840932,-548.94976271,0.00013698,2]
[333352252,1722067840941,-500.0,0.00013698,2]
[333352253,1722067840950,-500.0,0.00013698,2]
[333352254,1722067840960,-500.0,0.00013698,2]
[333352255,1722067840970,-500.0,0.00013698,2]
[333352256,1722067840980,-583.74953854,0.00013698,2]
[333352257,1722067840990,-506.42035712,0.00013698,2]
[333352258,1722067841000,-749.47,0.00013698,2]
[333352259,1722067841010,-500.0,0.00013698,2]
[333352260,1722067841019,-500.0,0.00013698,2]
[333352261,1722067841029,-630.73070108,0.00013698,2]
[333352262,1722067841039,-565.07174941,0.00013698,2]
[333352263,1722067841048,-500.0,0.00013698,2]
[333352264,1722067841058,-500.0,0.00013698,2]
[333352265,1722067841067,-500.0,0.00013698,2]
[333352266,1722067841077,-500.0,0.00013698,2]
[333352267,1722067841086,-500.0,0.00013698,2]
[333352268,1722067841096,-500.0,0.00013698,2]
[333352269,1722067841105,-500.0,0.00013698,2]
[333352270,1722067841115,-500.0,0.00013698,2]
[333352271,1722067841124,-500.0,0.00013698,2]
[333352272,1722067841133,-500.0,0.00013698,2]
[333352273,1722067841143,-500.0,0.00013698,2]
[333352274,1722067841152,-500.0,0.00013698,2]
[333352275,1722067841162,-500.0,0.00013698,2]
[333352276,1722067841172,-500.0,0.00013698,2]
[333352277,1722067841181,-500.0,0.00013698,2]
[333352278,1722067841190,-500.0,0.00013698,2]
[333352279,1722067841200,-500.0,0.00013698,2]
[333352280,1722067841210,-500.0,0.00013698,2]
[333352281,1722067841219,-500.0,0.00013698,2]
[333352282,1722067841229,-500.0,0.00013698,2]
[333352283,1722067841238,-500.0,0.00013698,2]
[333352284,1722067841247,-500.0,0.00013698,2]
[333352285,1722067841256,-500.0,0.00013698,2]
[333352286,1722067841266,-500.0,0.00013698,2]
[333352287,1722067841275,-500.0,0.00013698,2]
[333352288,1722067841285,-500.0,0.00013698,2]
[333352289,1722067841294,-500.90753046,0.00013698,2]
[333352290,1722067841303,-151.0,0.00013698,2]
[333352291,1722067841312,-500.0,0.00013698,2]
[333352292,1722067841321,-500.0,0.00013698,2]
[333352293,1722067841331,-500.0,0.00013698,2]
[333352294,1722067841342,-503.79320357,0.00013698,2]
[333352295,1722067841351,-505.96971472,0.00013698,2]
[333352296,1722067841360,-500.0,0.00013698,2]
[333352297,1722067841370,-500.0,0.00013698,2]
[333352298,1722067841379,-151.0,0.00013698,2]
[333352299,1722067841389,-500.0,0.00013698,2]
[333352300,1722067841398,-440.54186579,0.00013698,2]
[333352301,1722067841407,-500.0,0.00013698,2]
[333352302,1722067841417,-500.0,0.00013698,2]
[333352303,1722067841426,-500.0,0.00013698,2]
[333352304,1722067841435,-500.0,0.00013698,2]
[333352305,1722067841445,-500.0,0.00013698,2]
[333352306,1722067841454,-700.27,0.00013698,2]
[333352307,1722067841463,-500.0,0.00013698,2]
[333352308,1722067841473,-500.0,0.00013698,2]
[333352309,1722067841483,-500.0,0.00013698,2]
[333352310,1722067841496,-500.0,0.00013698,2]
[333352311,1722067841506,-661.95,0.00013698,2]
[333352312,1722067841515,-840.81,0.00013698,2]
[333352313,1722067841524,-500.0,0.00013698,2]
[333352314,1722067841535,-500.0,0.00013698,2]
[333352315,1722067841544,-724.33,0.00013698,2]
[333352316,1722067841555,-500.0,0.00013698,2]
[333352317,1722067841564,-500.0,0.00013698,2]
[333352318,1722067841575,-500.0,0.00013698,2]
[333352319,1722067841585,-500.0,0.00013698,2]
[333352320,1722067841594,-504.26,0.00013698,2]
[333352321,1722067841603,-500.0,0.00013698,2]
[333352322,1722067841612,-500.0,0.00013698,2]
[333352323,1722067841622,-500.0,0.00013698,2]
[333352324,1722067841631,-500.0,0.00013698,2]
[333352325,1722067841640,-500.0,0.00013698,2]
[333352326,1722067841650,-500.0,0.00013698,2]
[333352327,1722067841660,-500.0,0.00013698,2]
[333352328,1722067841669,-500.0,0.00013698,2]
[333352329,1722067841678,-500.0,0.00013698,2]
[333352330,1722067841688,-500.0,0.00013698,2]
[333352331,1722067841697,-500.0,0.00013698,2]
[333352332,1722067841706,-500.0,0.00013698,2]
[333352333,1722067841715,-500.0,0.00013698,2]
[333352334,1722067841724,-507.57712413,0.00013698,2]
[333352335,1722067841733,-151.0,0.00013698,2]
[333352336,1722067841742,-965.75,0.00013698,2]
[333352337,1722067841751,-323.24111165,0.00013698,2]
[333352338,1722067841760,-500.0,0.00013698,2]
[333352339,1722067841769,-382.14220212,0.00013698,2]
[333352340,1722067841779,-500.02705923,0.00013698,2]
[333352341,1722067841789,-500.0,0.00013698,2]
[333352342,1722067841799,-500.0,0.00013698,2]
[333352343,1722067841808,-500.0,0.00013698,2]
[333352344,1722067841818,-565.89448725,0.00013698,2]
[333352345,1722067841827,-500.0,0.00013698,2]
[333352346,1722067841837,-501.93976237,0.00013698,2]
[333352347,1722067841846,-500.0,0.00013698,2]
[333352348,1722067841855,-151.0,0.00013698,2]
[333352349,1722067841865,-500.0,0.00013698,2]
[333352350,1722067841874,-500.0,0.00013698,2]
[333352351,1722067841884,-1124.57,0.00013698,2]
[333352352,1722067841893,-500.0,0.00013698,2]
[333352353,1722067841902,-500.0,0.00013698,2]
[333352354,1722067841911,-500.0,0.00013698,2]
[333352355,1722067841921,-500.0,0.00013698,2]
[333352356,1722067841930,-500.0,0.00013698,2]
[333352357,1722067841939,-514.9231913,0.00013698,2]
[333352358,1722067841948,-892.64,0.00013698,2]
[333352359,1722067841957,-508.59142797,0.00013698,2]
[333352360,1722067841966,-500.0,0.00013698,2]
[333352361,1722067841975,-500.0,0.00013698,2]
[333352362,1722067841985,-500.0,0.00013698,2]
[333352363,1722067841997,-500.0,0.00013698,2]
[333352364,1722067842017,-500.0,0.00013698,2]
[333352365,1722067842040,-624.92435556,0.00013698,2]
[333352366,1722067842064,-999.4,0.00013698,2]
[333352367,1722067842085,-152.712921,0.00013698,2]
[333352368,1722067842107,-500.0,0.00013698,2]
[333352369,1722067842130,-152.9199,0.00013698,2]
[333352370,1722067842154,-500.0,0.00013698,2]
[333352371,1722067842175,-1382.3,0.00013698,2]
[333352372,1722067842196,-500.0,0.00013698,2]
[333352373,1722067842218,-151.0,0.00013698,2]
[333352374,1722067842227,-500.0,0.00013698,2]
[333352375,1722067842237,-500.0,0.00013698,2]
[333352376,1722067842246,-500.0,0.00013698,2]
[333352377,1722067842256,-500.0,0.00013698,2]
[333352378,1722067842266,-500.0,0.00013698,2]
[333352379,1722067842275,-151.0,0.00013698,2]
[333352380,1722067842284,-151.0,0.00013698,2]
[333352381,1722067842294,-211.95222567,0.00013698,2]
[333352382,1722067842303,-657.8,0.00013698,2]
[333352383,1722067842313,-500.0,0.00013698,2]
[333352384,1722067842322,-500.0,0.00013698,2]
[333352385,1722067842331,-664.62,0.00013698,2]
[333352386,1722067842341,-500.0,0.00013698,2]
[333352387,1722067842350,-513.43690189,0.00013698,2]
[333352388,1722067842359,-500.0,0.00013698,2]
[333352389,1722067842369,-500.0,0.00013698,2]
[333352390,1722067842378,-151.418861,0.00013698,2]
[333352391,1722067842388,-505.34279505,0.00013698,2]
[333352392,1722067842397,-539.28780059,0.00013698,2]
[333352393,1722067842407,-500.0,0.00013698,2]
[333352394,1722067842416,-500.0,0.00013698,2]
[333352395,1722067842425,-151.0,0.00013698,2]
[333352397,1722067842434,-151.0,0.00013698,2]
[333352399,1722067842444,-500.0,0.00013698,2]
[333352402,1722067842453,-598.84,0.00013698,2]
[333352404,1722067842462,-500.0,0.00013698,2]
[333352406,1722067842472,-500.0,0.00013698,2]
[333352408,1722067842481,-151.0,0.00013698,2]
[333352409,1722067842493,-151.0,0.00013698,2]
[333352410,1722067842502,-500.0,0.00013698,2]
[333352411,1722067842511,-151.0,0.00013698,2]
[333352412,1722067842520,-151.0,0.00013698,2]
[333352413,1722067842529,-500.0,0.00013698,2]
[333352414,1722067842538,-554.15,0.00013698,2]
[333352415,1722067842547,-151.0,0.00013698,2]
[333352416,1722067842556,-151.0,0.00013698,2]
[333352417,1722067842565,-500.0,0.00013698,2]
[333352418,1722067842574,-1482.11,0.00013698,2]
[333352419,1722067842583,-500.0,0.00013698,2]
[333352420,1722067842593,-503.04334662,0.00013698,2]
[333352421,1722067842602,-500.0,0.00013698,2]
[333352422,1722067842611,-500.0,0.00013698,2]
[333352423,1722067842619,-500.0,0.00013698,2]
[333352424,1722067842628,-2270.41,0.00013698,2]
[333352425,1722067842637,-590.34477376,0.00013698,2]
[333352426,1722067842647,-500.0,0.00013698,2]
[333352427,1722067842656,-1143.39,0.00013698,2]
[333352428,1722067842665,-500.0,0.00013698,2]
[333352429,1722067842674,-1991.53,0.00013698,2]
[333352430,1722067842683,-500.0,0.00013698,2]
[333352431,1722067842692,-1087.74,0.00013698,2]